[Event "Titled Tuesday Blitz February 14 Early 2023"]
[White "Devaev, Alexander"]
[Black "Ciuffoletti, Paolo"]
[WhiteFideId "4169395"]
[BlackFideId "807630"]
[WhiteElo "2325"]
[BlackElo "2106"]
[Result "1/2-1/2"]
[Round "02"]
[TimeControl "180+2"]
[Date "2023.02.15"]
[WhiteClock "0:00:11"]
[BlackClock "0:00:04"]

1. d4 {[%clk 0:03:00]}  d5 {[%clk 0:02:59]} 2. Nf3 {[%clk 0:03:00]}  Nf6 {[%clk 0:02:58]} 3. c4 {[%clk 0:03:00]}  c6 {[%clk 0:02:59]} 4. Qc2 {[%clk 0:03:00]}  g6 {[%clk 0:02:56]} 5. Bf4 {[%clk 0:03:00]}  Bg7 {[%clk 0:02:54]} 6. e3 {[%clk 0:03:00]}  O-O {[%clk 0:02:51]} 7. Nbd2 {[%clk 0:03:01]}  c5 {[%clk 0:02:46]} 8. dxc5 {[%clk 0:02:59]}  Qa5 {[%clk 0:02:45]} 9. a3 {[%clk 0:02:19]}  Bf5 {[%clk 0:02:02]} 10. Qb3 {[%clk 0:02:04]}  Na6 {[%clk 0:01:40]} 11. Nd4 {[%clk 0:01:43]}  Ne4 {[%clk 0:01:19]} 12. Rd1 {[%clk 0:01:25]}  Naxc5 {[%clk 0:01:13]} 13. Qb4 {[%clk 0:01:15]}  Qxb4 {[%clk 0:00:49]} 14. axb4 {[%clk 0:01:15]}  Na4 {[%clk 0:00:49]} 15. Nxe4 {[%clk 0:01:03]}  dxe4 {[%clk 0:00:44]} 16. b3 {[%clk 0:00:47]}  Nb6 {[%clk 0:00:26]} 17. Be2 {[%clk 0:00:37]}  e5 {[%clk 0:00:19]} 18. Nxf5 {[%clk 0:00:37]}  exf4 {[%clk 0:00:17]} 19. Nxg7 {[%clk 0:00:35]}  Kxg7 {[%clk 0:00:17]} 20. exf4 {[%clk 0:00:36]}  a5 {[%clk 0:00:16]} 21. c5 {[%clk 0:00:29]}  Nc8 {[%clk 0:00:15]} 22. Ra1 {[%clk 0:00:25]}  Ne7 {[%clk 0:00:13]} 23. Rxa5 {[%clk 0:00:20]}  Nd5 {[%clk 0:00:13]} 24. O-O {[%clk 0:00:16]}  Nxb4 {[%clk 0:00:12]} 25. Rb5 {[%clk 0:00:16]}  Nd3 {[%clk 0:00:11]} 26. Rxb7 {[%clk 0:00:14]}  Nxc5 {[%clk 0:00:11]} 27. Rb5 {[%clk 0:00:12]}  Rfc8 {[%clk 0:00:11]} 28. Bc4 {[%clk 0:00:12]}  Rab8 {[%clk 0:00:10]} 29. Rxb8 {[%clk 0:00:09]}  Rxb8 {[%clk 0:00:10]} 30. g3 {[%clk 0:00:09]}  f5 {[%clk 0:00:09]} 31. Rd1 {[%clk 0:00:09]}  Rb4 {[%clk 0:00:09]} 32. Rb1 {[%clk 0:00:06]}  Nd3 {[%clk 0:00:08]} 33. Bxd3 {[%clk 0:00:04]}  exd3 {[%clk 0:00:08]} 34. Kf1 {[%clk 0:00:05]}  Re4 {[%clk 0:00:05]} 35. b4 {[%clk 0:00:05]}  d2 {[%clk 0:00:05]} 36. b5 {[%clk 0:00:05]}  Re6 {[%clk 0:00:04]} 37. b6 {[%clk 0:00:05]}  d1=Q+ {[%clk 0:00:04]} 38. Rxd1 {[%clk 0:00:04]}  Rxb6 {[%clk 0:00:04]} 39. Kg2 {[%clk 0:00:05]}  Rb2 {[%clk 0:00:04]} 40. Rd7+ {[%clk 0:00:06]}  Kh6 {[%clk 0:00:04]} 41. Rd3 {[%clk 0:00:07]}  Rc2 {[%clk 0:00:04]} 42. h4 {[%clk 0:00:07]}  Rb2 {[%clk 0:00:04]} 43. Rd7 {[%clk 0:00:07]}  Rc2 {[%clk 0:00:04]} 44. Re7 {[%clk 0:00:08]}  Rb2 {[%clk 0:00:04]} 45. Kf3 {[%clk 0:00:08]}  Rc2 {[%clk 0:00:04]} 46. Re3 {[%clk 0:00:09]}  Rb2 {[%clk 0:00:04]} 47. Rc3 {[%clk 0:00:09]}  Ra2 {[%clk 0:00:04]} 48. Rb3 {[%clk 0:00:10]}  Rc2 {[%clk 0:00:04]} 49. Rd3 {[%clk 0:00:10]}  Rb2 {[%clk 0:00:04]} 50. Re3 {[%clk 0:00:11]}  Ra2 {[%clk 0:00:04]} 51. Re2 {[%clk 0:00:11]}  Ra3+ {[%clk 0:00:04]} 52. Kg2 {[%clk 0:00:12]}  Ra1 {[%clk 0:00:04]} 53. f3 {[%clk 0:00:12]}  Ra3 {[%clk 0:00:04]} 54. Kf2 {[%clk 0:00:11]}  Rb3 {[%clk 0:00:03]} 55. Kg2 {[%clk 0:00:10]}  Ra3 {[%clk 0:00:03]} 56. Rf2 {[%clk 0:00:10]}  Rb3 {[%clk 0:00:03]} 57. Re2 {[%clk 0:00:11]}  Ra3 {[%clk 0:00:04]} 1/2-1/2


[Site "https://www.chess.com"]

[Event "Titled Tuesday Blitz February 14 Early 2023"]
[White "Korpics, Zsolt"]
[Black "Balabayeva, Xeniya"]
[WhiteFideId "705241"]
[BlackFideId "13719688"]
[WhiteElo "2300"]
[BlackElo "2191"]
[Result "0-1"]
[Round "02"]
[TimeControl "180+2"]
[Date "2023.02.15"]
[WhiteClock "0:00:11"]
[BlackClock "0:00:06"]

1. e4 {[%clk 0:03:00]}  c5 {[%clk 0:02:59]} 2. Nf3 {[%clk 0:03:01]}  e6 {[%clk 0:02:58]} 3. d4 {[%clk 0:03:01]}  cxd4 {[%clk 0:02:57]} 4. Nxd4 {[%clk 0:03:02]}  Nf6 {[%clk 0:02:57]} 5. Nc3 {[%clk 0:03:02]}  Nc6 {[%clk 0:02:55]} 6. Ndb5 {[%clk 0:03:00]}  Bc5 {[%clk 0:02:54]} 7. Nd6+ {[%clk 0:02:54]}  Ke7 {[%clk 0:02:51]} 8. Bf4 {[%clk 0:02:43]}  e5 {[%clk 0:02:46]} 9. Nf5+ {[%clk 0:02:43]}  Kf8 {[%clk 0:02:46]} 10. Be3 {[%clk 0:02:42]}  Bb4 {[%clk 0:02:44]} 11. f3 {[%clk 0:02:17]}  d5 {[%clk 0:02:37]} 12. a3 {[%clk 0:02:05]}  Bxc3+ {[%clk 0:02:11]} 13. bxc3 {[%clk 0:02:06]}  Bxf5 {[%clk 0:02:08]} 14. exf5 {[%clk 0:02:05]}  Qc7 {[%clk 0:01:56]} 15. Qd2 {[%clk 0:01:55]}  h5 {[%clk 0:01:18]} 16. Be2 {[%clk 0:01:47]}  Ne7 {[%clk 0:01:17]} 17. g4 {[%clk 0:01:37]}  hxg4 {[%clk 0:01:15]} 18. fxg4 {[%clk 0:01:37]}  Ne4 {[%clk 0:01:13]} 19. Qd3 {[%clk 0:01:34]}  Ng3 {[%clk 0:00:49]} 20. Bb6 {[%clk 0:00:58]}  Qxb6 {[%clk 0:00:28]} 21. Qxg3 {[%clk 0:00:58]}  Rc8 {[%clk 0:00:27]} 22. Rd1 {[%clk 0:00:47]}  Qc5 {[%clk 0:00:25]} 23. Rd3 {[%clk 0:00:33]}  e4 {[%clk 0:00:21]} 24. Re3 {[%clk 0:00:33]}  f6 {[%clk 0:00:16]} 25. O-O {[%clk 0:00:33]}  Qxa3 {[%clk 0:00:14]} 26. g5 {[%clk 0:00:32]}  Qc5 {[%clk 0:00:13]} 27. Kh1 {[%clk 0:00:28]}  Qc7 {[%clk 0:00:12]} 28. Qg2 {[%clk 0:00:28]}  Qe5 {[%clk 0:00:12]} 29. Rg3 {[%clk 0:00:27]}  Ke8 {[%clk 0:00:11]} 30. Bb5+ {[%clk 0:00:24]}  Kd8 {[%clk 0:00:11]} 31. Qf2 {[%clk 0:00:20]}  b6 {[%clk 0:00:09]} 32. Rd1 {[%clk 0:00:19]}  Kc7 {[%clk 0:00:09]} 33. Ra1 {[%clk 0:00:19]}  Kb8 {[%clk 0:00:09]} 34. c4 {[%clk 0:00:19]}  d4 {[%clk 0:00:08]} 35. Rga3 {[%clk 0:00:18]}  Rc7 {[%clk 0:00:08]} 36. Kg1 {[%clk 0:00:17]}  e3 {[%clk 0:00:09]} 37. Qg2 {[%clk 0:00:17]}  Nxf5 {[%clk 0:00:08]} 38. c5 {[%clk 0:00:17]}  Qxc5 {[%clk 0:00:08]} 39. Bd3 {[%clk 0:00:16]}  Nh4 {[%clk 0:00:07]} 40. Qe4 {[%clk 0:00:15]}  Qxg5+ {[%clk 0:00:07]} 41. Kh1 {[%clk 0:00:15]}  Qe5 {[%clk 0:00:07]} 42. Qg2 {[%clk 0:00:10]}  Nxg2 {[%clk 0:00:06]} 43. Kxg2 {[%clk 0:00:11]}  Rxh2+ {[%clk 0:00:06]} 0-1


[Site "https://www.chess.com"]

[Event "Titled Tuesday Blitz February 14 Early 2023"]
[White "Nugumanov, Bakhtiyar"]
[Black "Guliev, Logman"]
[WhiteFideId "13701797"]
[BlackFideId "13400061"]
[WhiteElo "2316"]
[BlackElo "2250"]
[Result "0-1"]
[Round "02"]
[TimeControl "180+2"]
[Date "2023.02.15"]
[WhiteClock "0:00:01"]
[BlackClock "0:00:05"]

1. Nf3 {[%clk 0:03:00]}  Nf6 {[%clk 0:02:51]} 2. c4 {[%clk 0:03:00]}  e6 {[%clk 0:02:51]} 3. g3 {[%clk 0:03:00]}  d5 {[%clk 0:02:51]} 4. Bg2 {[%clk 0:03:00]}  c5 {[%clk 0:02:49]} 5. cxd5 {[%clk 0:02:59]}  exd5 {[%clk 0:02:48]} 6. d4 {[%clk 0:02:58]}  Nc6 {[%clk 0:02:49]} 7. O-O {[%clk 0:02:58]}  h6 {[%clk 0:02:47]} 8. Nc3 {[%clk 0:02:58]}  Be7 {[%clk 0:02:47]} 9. b3 {[%clk 0:02:13]}  O-O {[%clk 0:02:44]} 10. Bb2 {[%clk 0:02:14]}  Bg4 {[%clk 0:02:44]} 11. h3 {[%clk 0:02:01]}  Bh5 {[%clk 0:02:22]} 12. Rc1 {[%clk 0:01:56]}  Re8 {[%clk 0:01:56]} 13. g4 {[%clk 0:01:34]}  Bg6 {[%clk 0:01:54]} 14. dxc5 {[%clk 0:01:34]}  Bxc5 {[%clk 0:01:46]} 15. e3 {[%clk 0:01:34]}  Bb6 {[%clk 0:01:41]} 16. Ne2 {[%clk 0:01:24]}  Ne4 {[%clk 0:01:39]} 17. Nf4 {[%clk 0:01:23]}  Ne7 {[%clk 0:01:10]} 18. Nxg6 {[%clk 0:00:48]}  Nxg6 {[%clk 0:01:10]} 19. Nd4 {[%clk 0:00:48]}  Nh4 {[%clk 0:01:04]} 20. Bh1 {[%clk 0:00:39]}  Ng5 {[%clk 0:01:03]} 21. Bg2 {[%clk 0:00:16]}  Nxg2 {[%clk 0:00:53]} 22. Kxg2 {[%clk 0:00:17]}  Qf6 {[%clk 0:00:50]} 23. Ba1 {[%clk 0:00:14]}  Qg6 {[%clk 0:00:36]} 24. Nf5 {[%clk 0:00:14]}  Ne6 {[%clk 0:00:32]} 25. Qxd5 {[%clk 0:00:14]}  h5 {[%clk 0:00:32]} 26. Qf3 {[%clk 0:00:13]}  Ng5 {[%clk 0:00:29]} 27. Qg3 {[%clk 0:00:08]}  Ne4 {[%clk 0:00:29]} 28. Qf4 {[%clk 0:00:08]}  f6 {[%clk 0:00:24]} 29. Kh1 {[%clk 0:00:06]}  hxg4 {[%clk 0:00:22]} 30. Qxg4 {[%clk 0:00:06]}  Qxg4 {[%clk 0:00:20]} 31. hxg4 {[%clk 0:00:06]}  Kf7 {[%clk 0:00:20]} 32. Kg2 {[%clk 0:00:06]}  Rad8 {[%clk 0:00:19]} 33. Rh1 {[%clk 0:00:03]}  Rd2 {[%clk 0:00:16]} 34. Rcf1 {[%clk 0:00:04]}  g6 {[%clk 0:00:12]} 35. Rh7+ {[%clk 0:00:04]}  Ke6 {[%clk 0:00:12]} 36. Ng7+ {[%clk 0:00:04]}  Kf7 {[%clk 0:00:11]} 37. Nxe8+ {[%clk 0:00:05]}  Kxe8 {[%clk 0:00:12]} 38. Rh8+ {[%clk 0:00:05]}  Kf7 {[%clk 0:00:12]} 39. Rh7+ {[%clk 0:00:06]}  Ke6 {[%clk 0:00:12]} 40. Rxb7 {[%clk 0:00:07]}  Bxe3 {[%clk 0:00:12]} 41. Kf3 {[%clk 0:00:06]}  Nd6 {[%clk 0:00:09]} 42. Rb4 {[%clk 0:00:03]}  Bc5 {[%clk 0:00:08]} 43. Rf4 {[%clk 0:00:03]}  f5 {[%clk 0:00:08]} 44. gxf5+ {[%clk 0:00:04]}  gxf5 {[%clk 0:00:08]} 45. Re1+ {[%clk 0:00:05]}  Ne4 {[%clk 0:00:08]} 46. Re2 {[%clk 0:00:05]}  Rd1 {[%clk 0:00:08]} 47. Bh8 {[%clk 0:00:04]}  Rh1 {[%clk 0:00:08]} 48. Bg7 {[%clk 0:00:03]}  Rg1 {[%clk 0:00:08]} 49. Bb2 {[%clk 0:00:02]}  Bd6 {[%clk 0:00:07]} 50. Rh4 {[%clk 0:00:01]}  Kf7 {[%clk 0:00:05]} 51. Rh7+ {[%clk 0:00:01]}  Kg6 {[%clk 0:00:05]} 52. Rxa7 {[%clk 0:00:02]}  Ng5+ {[%clk 0:00:05]} 53. Ke3 {[%clk 0:00:03]}  Bc5+ {[%clk 0:00:05]} 54. Kd3 {[%clk 0:00:03]}  Bxa7 {[%clk 0:00:06]} 55. Re7 {[%clk 0:00:02]}  Bc5 {[%clk 0:00:06]} 56. Rc7 {[%clk 0:00:03]}  Rb1 {[%clk 0:00:06]} 57. Rxc5 {[%clk 0:00:02]}  Rxb2 {[%clk 0:00:05]} 58. Rc6+ {[%clk 0:00:03]}  Kh5 {[%clk 0:00:05]} 59. b4 {[%clk 0:00:02]}  Rxa2 {[%clk 0:00:05]} 60. Rc5 {[%clk 0:00:02]}  Rxf2 {[%clk 0:00:05]} 61. Ke3 {[%clk 0:00:02]}  Rf3+ {[%clk 0:00:04]} 62. Ke2 {[%clk 0:00:02]}  Kg4 {[%clk 0:00:05]} 63. Rc4+ {[%clk 0:00:02]}  f4 {[%clk 0:00:04]} 64. b5 {[%clk 0:00:02]}  Rb3 {[%clk 0:00:05]} 65. Rc5 {[%clk 0:00:02]}  Ne4 {[%clk 0:00:05]} 66. Re5 {[%clk 0:00:01]}  f3+ {[%clk 0:00:05]} 67. Kf1 {[%clk 0:00:01]}  Kf4 {[%clk 0:00:05]} 68. Rxe4+ {[%clk 0:00:01]}  Kxe4 {[%clk 0:00:05]} 69. b6 {[%clk 0:00:01]}  Ke3 {[%clk 0:00:05]} 0-1


[Site "https://www.chess.com"]

[Event "Titled Tuesday Blitz February 14 Early 2023"]
[White "Mujumdar, Sameer"]
[Black "Zampronha, Wladimir Camilo"]
[WhiteFideId "2029707"]
[BlackFideId "2103087"]
[WhiteElo "1992"]
[BlackElo "2176"]
[Result "0-1"]
[Round "02"]
[TimeControl "180+2"]
[Date "2023.02.15"]
[WhiteClock "0:00:33"]
[BlackClock "0:00:16"]

1. d4 {[%clk 0:03:00]}  Nf6 {[%clk 0:02:59]} 2. c4 {[%clk 0:03:00]}  e6 {[%clk 0:02:59]} 3. Nc3 {[%clk 0:03:00]}  Bb4 {[%clk 0:02:59]} 4. Nf3 {[%clk 0:02:58]}  O-O {[%clk 0:02:57]} 5. g3 {[%clk 0:02:58]}  d5 {[%clk 0:02:57]} 6. Bg2 {[%clk 0:02:57]}  dxc4 {[%clk 0:02:56]} 7. O-O {[%clk 0:02:56]}  Nc6 {[%clk 0:02:55]} 8. e3 {[%clk 0:02:52]}  Na5 {[%clk 0:02:52]} 9. Qe2 {[%clk 0:02:41]}  Rb8 {[%clk 0:02:50]} 10. Ne5 {[%clk 0:02:34]}  b5 {[%clk 0:02:46]} 11. Bd2 {[%clk 0:02:23]}  Bb7 {[%clk 0:02:21]} 12. Bxb7 {[%clk 0:02:18]}  Rxb7 {[%clk 0:02:18]} 13. Qf3 {[%clk 0:02:11]}  Rb6 {[%clk 0:02:04]} 14. Rad1 {[%clk 0:01:47]}  Qa8 {[%clk 0:02:00]} 15. Qe2 {[%clk 0:01:40]}  a6 {[%clk 0:01:55]} 16. f3 {[%clk 0:01:38]}  Nc6 {[%clk 0:01:39]} 17. Ng4 {[%clk 0:01:17]}  Nxg4 {[%clk 0:01:35]} 18. fxg4 {[%clk 0:01:18]}  Ne7 {[%clk 0:01:22]} 19. e4 {[%clk 0:01:14]}  c5 {[%clk 0:01:14]} 20. a3 {[%clk 0:01:12]}  cxd4 {[%clk 0:01:11]} 21. axb4 {[%clk 0:01:10]}  dxc3 {[%clk 0:01:11]} 22. bxc3 {[%clk 0:01:03]}  Ng6 {[%clk 0:01:04]} 23. Qf2 {[%clk 0:00:43]}  Rbb8 {[%clk 0:00:57]} 24. Bf4 {[%clk 0:00:37]}  Nxf4 {[%clk 0:00:42]} 25. Qxf4 {[%clk 0:00:37]}  Qb7 {[%clk 0:00:31]} 26. Rd2 {[%clk 0:00:35]}  Rbd8 {[%clk 0:00:31]} 27. Rdf2 {[%clk 0:00:36]}  Rd3 {[%clk 0:00:29]} 28. Rf3 {[%clk 0:00:36]}  Rxf3 {[%clk 0:00:28]} 29. Rxf3 {[%clk 0:00:37]}  Rd8 {[%clk 0:00:26]} 30. Kg2 {[%clk 0:00:35]}  Qd7 {[%clk 0:00:26]} 31. Kh3 {[%clk 0:00:35]}  g6 {[%clk 0:00:25]} 32. g5 {[%clk 0:00:34]}  e5+ {[%clk 0:00:25]} 33. Qg4 {[%clk 0:00:33]}  Qxg4+ {[%clk 0:00:25]} 34. Kxg4 {[%clk 0:00:34]}  Rd2 {[%clk 0:00:23]} 35. h4 {[%clk 0:00:32]}  Kf8 {[%clk 0:00:22]} 36. Rf6 {[%clk 0:00:32]}  Rd3 {[%clk 0:00:20]} 37. Rxa6 {[%clk 0:00:32]}  Rxc3 {[%clk 0:00:20]} 38. Rb6 {[%clk 0:00:33]}  Re3 {[%clk 0:00:19]} 39. Rxb5 {[%clk 0:00:33]}  Rxe4+ {[%clk 0:00:19]} 40. Kf3 {[%clk 0:00:34]}  Rd4 {[%clk 0:00:18]} 41. Rxe5 {[%clk 0:00:34]}  c3 {[%clk 0:00:17]} 42. Rc5 {[%clk 0:00:34]}  Rxb4 {[%clk 0:00:15]} 43. Rxc3 {[%clk 0:00:35]}  Kg7 {[%clk 0:00:15]} 44. Rc6 {[%clk 0:00:35]}  Ra4 {[%clk 0:00:14]} 45. g4 {[%clk 0:00:35]}  Ra3+ {[%clk 0:00:15]} 46. Kf4 {[%clk 0:00:33]}  Ra4+ {[%clk 0:00:15]} 47. Kg3 {[%clk 0:00:33]}  Ra3+ {[%clk 0:00:15]} 48. Kf2 {[%clk 0:00:34]}  Ra2+ {[%clk 0:00:16]} 49. Kf3 {[%clk 0:00:33]}  Ra3+ {[%clk 0:00:16]} 50. Ke2 {[%clk 0:00:33]}  Ra2+ {[%clk 0:00:16]} 51. Kd3 {[%clk 0:00:33]}  Ra4 {[%clk 0:00:16]} 52. Rc4 {[%clk 0:00:32]}  Ra3+ {[%clk 0:00:15]} 53. Ke4 {[%clk 0:00:31]}  Rh3 {[%clk 0:00:15]} 54. Kf4 {[%clk 0:00:31]}  Rxh4 {[%clk 0:00:14]} 55. Rc6 {[%clk 0:00:31]}  Rh1 {[%clk 0:00:13]} 56. Rb6 {[%clk 0:00:31]}  Rf1+ {[%clk 0:00:14]} 57. Kg3 {[%clk 0:00:31]}  Rd1 {[%clk 0:00:14]} 58. Kf4 {[%clk 0:00:31]}  Rd4+ {[%clk 0:00:14]} 59. Kg3 {[%clk 0:00:32]}  Rd7 {[%clk 0:00:15]} 60. Kf4 {[%clk 0:00:32]}  Re7 {[%clk 0:00:14]} 61. Rc6 {[%clk 0:00:32]}  Re6 {[%clk 0:00:14]} 62. Rc7 {[%clk 0:00:30]}  Ra6 {[%clk 0:00:13]} 63. Rd7 {[%clk 0:00:30]}  Ra4+ {[%clk 0:00:14]} 64. Kg3 {[%clk 0:00:31]}  Ra5 {[%clk 0:00:14]} 65. Kf4 {[%clk 0:00:31]}  Rb5 {[%clk 0:00:15]} 66. Kg3 {[%clk 0:00:31]}  Rxg5 {[%clk 0:00:14]} 67. Kf4 {[%clk 0:00:32]}  Rb5 {[%clk 0:00:15]} 68. Rc7 {[%clk 0:00:32]}  Rb6 {[%clk 0:00:15]} 69. Rb7 {[%clk 0:00:32]}  Rf6+ {[%clk 0:00:15]} 70. Kg3 {[%clk 0:00:32]}  g5 {[%clk 0:00:16]} 71. Rb5 {[%clk 0:00:31]}  h6 {[%clk 0:00:16]} 72. Rf5 {[%clk 0:00:32]}  Rxf5 {[%clk 0:00:16]} 73. gxf5 {[%clk 0:00:33]}  Kf6 {[%clk 0:00:16]} 0-1


[Site "https://www.chess.com"]

[Event "Titled Tuesday Blitz February 14 Early 2023"]
[White "Meera, Sai"]
[Black "Hajiyev, Kanan"]
[WhiteFideId "5004357"]
[BlackFideId "13404148"]
[WhiteElo "2064"]
[BlackElo "2197"]
[Result "0-1"]
[Round "02"]
[TimeControl "180+2"]
[Date "2023.02.15"]
[WhiteClock "0:00:53"]
[BlackClock "0:01:01"]

1. e4 {[%clk 0:03:00]}  c6 {[%clk 0:02:58]} 2. d4 {[%clk 0:03:00]}  d5 {[%clk 0:02:59]} 3. e5 {[%clk 0:03:00]}  a6 {[%clk 0:02:59]} 4. Nf3 {[%clk 0:02:55]}  Bg4 {[%clk 0:02:59]} 5. Be2 {[%clk 0:02:54]}  e6 {[%clk 0:02:59]} 6. O-O {[%clk 0:02:54]}  c5 {[%clk 0:02:59]} 7. c3 {[%clk 0:02:52]}  Nc6 {[%clk 0:02:59]} 8. h3 {[%clk 0:02:50]}  Bxf3 {[%clk 0:02:57]} 9. Bxf3 {[%clk 0:02:50]}  cxd4 {[%clk 0:02:58]} 10. cxd4 {[%clk 0:02:50]}  Qb6 {[%clk 0:02:58]} 11. Be3 {[%clk 0:02:50]}  Nge7 {[%clk 0:02:50]} 12. Nd2 {[%clk 0:02:43]}  Nf5 {[%clk 0:02:49]} 13. b3 {[%clk 0:02:40]}  Ncxd4 {[%clk 0:02:40]} 14. Bg4 {[%clk 0:02:37]}  Nxe3 {[%clk 0:02:36]} 15. fxe3 {[%clk 0:02:35]}  Nc6 {[%clk 0:02:36]} 16. Qf3 {[%clk 0:02:09]}  Nxe5 {[%clk 0:02:36]} 17. Qf4 {[%clk 0:02:01]}  Bd6 {[%clk 0:02:35]} 18. Kh1 {[%clk 0:02:01]}  O-O {[%clk 0:02:23]} 19. Nf3 {[%clk 0:01:49]}  Nc4 {[%clk 0:01:55]} 20. Qg5 {[%clk 0:01:42]}  Nxe3 {[%clk 0:01:44]} 21. Rfc1 {[%clk 0:01:09]}  Rac8 {[%clk 0:01:25]} 22. Rxc8 {[%clk 0:01:06]}  Rxc8 {[%clk 0:01:26]} 23. Re1 {[%clk 0:01:06]}  Nxg4 {[%clk 0:01:23]} 24. Qxg4 {[%clk 0:01:03]}  Qf2 {[%clk 0:01:13]} 25. Rg1 {[%clk 0:00:59]}  Qg3 {[%clk 0:01:12]} 26. Qxg3 {[%clk 0:00:59]}  Bxg3 {[%clk 0:01:13]} 27. Nd4 {[%clk 0:00:54]}  Bf2 {[%clk 0:01:10]} 28. Rd1 {[%clk 0:00:55]}  Bxd4 {[%clk 0:01:08]} 29. Rxd4 {[%clk 0:00:56]}  Kf8 {[%clk 0:01:05]} 30. a4 {[%clk 0:00:55]}  a5 {[%clk 0:01:02]} 31. Kh2 {[%clk 0:00:53]}  Ke7 {[%clk 0:01:01]} 0-1


[Site "https://www.chess.com"]

[Event "Titled Tuesday Blitz February 14 Early 2023"]
[White "Thiel, Thomas"]
[Black "Babikov, Ivan"]
[WhiteFideId "4615964"]
[BlackFideId "4161106"]
[WhiteElo "2234"]
[BlackElo "2239"]
[Result "0-1"]
[Round "02"]
[TimeControl "180+2"]
[Date "2023.02.15"]
[WhiteClock "0:02:30"]
[BlackClock "0:02:06"]

1. e4 {[%clk 0:03:00]}  c5 {[%clk 0:02:59]} 2. Nc3 {[%clk 0:02:59]}  g6 {[%clk 0:02:58]} 3. d4 {[%clk 0:02:56]}  Bg7 {[%clk 0:02:55]} 4. dxc5 {[%clk 0:02:54]}  Qa5 {[%clk 0:02:55]} 5. Ne2 {[%clk 0:02:54]}  Qxc5 {[%clk 0:02:54]} 6. Be3 {[%clk 0:02:54]}  Qa5 {[%clk 0:02:40]} 7. Bd4 {[%clk 0:02:53]}  Bxd4 {[%clk 0:02:33]} 8. Qxd4 {[%clk 0:02:54]}  Nf6 {[%clk 0:02:33]} 9. O-O-O {[%clk 0:02:53]}  Nc6 {[%clk 0:02:32]} 10. Qd2 {[%clk 0:02:47]}  d6 {[%clk 0:02:17]} 11. Kb1 {[%clk 0:02:37]}  Be6 {[%clk 0:02:16]} 12. Nd4 {[%clk 0:02:30]}  Nxe4 {[%clk 0:02:06]} 0-1


[Site "https://www.chess.com"]

[Event "Titled Tuesday Blitz February 14 Early 2023"]
[White "Delorme, Axel"]
[Black "Sabar, Ethmane Daouda"]
[WhiteFideId "632023"]
[BlackFideId "19600097"]
[WhiteElo "2483"]
[BlackElo "2040"]
[Result "1-0"]
[Round "02"]
[TimeControl "180+2"]
[Date "2023.02.15"]
[WhiteClock "0:00:31"]
[BlackClock "0:00:06"]

1. e4 {[%clk 0:02:57]}  e5 {[%clk 0:02:59]} 2. Nf3 {[%clk 0:02:57]}  Nc6 {[%clk 0:03:00]} 3. Bb5 {[%clk 0:02:58]}  f5 {[%clk 0:02:59]} 4. d3 {[%clk 0:02:57]}  fxe4 {[%clk 0:02:58]} 5. dxe4 {[%clk 0:02:58]}  Nf6 {[%clk 0:02:59]} 6. O-O {[%clk 0:02:59]}  Bc5 {[%clk 0:02:58]} 7. Nc3 {[%clk 0:02:35]}  d6 {[%clk 0:02:41]} 8. Bg5 {[%clk 0:02:33]}  Bg4 {[%clk 0:02:20]} 9. h3 {[%clk 0:02:27]}  Bxf3 {[%clk 0:02:10]} 10. Qxf3 {[%clk 0:02:23]}  O-O {[%clk 0:02:08]} 11. Bc4+ {[%clk 0:02:00]}  Kh8 {[%clk 0:02:06]} 12. Nd5 {[%clk 0:01:58]}  Nd4 {[%clk 0:01:50]} 13. Qd3 {[%clk 0:01:56]}  Ne6 {[%clk 0:01:37]} 14. Bxf6 {[%clk 0:01:43]}  gxf6 {[%clk 0:01:33]} 15. b4 {[%clk 0:01:44]}  c6 {[%clk 0:01:10]} 16. bxc5 {[%clk 0:01:30]}  cxd5 {[%clk 0:01:10]} 17. Qxd5 {[%clk 0:01:29]}  Nf4 {[%clk 0:01:09]} 18. Qxd6 {[%clk 0:01:21]}  Qe8 {[%clk 0:00:56]} 19. Kh2 {[%clk 0:00:52]}  Qh5 {[%clk 0:00:46]} 20. Qd7 {[%clk 0:00:47]}  Rad8 {[%clk 0:00:37]} 21. Qg4 {[%clk 0:00:45]}  Qh6 {[%clk 0:00:35]} 22. Rad1 {[%clk 0:00:42]}  Rde8 {[%clk 0:00:34]} 23. Rd7 {[%clk 0:00:40]}  Qg5 {[%clk 0:00:11]} 24. Qxg5 {[%clk 0:00:36]}  fxg5 {[%clk 0:00:12]} 25. Rxb7 {[%clk 0:00:36]}  h5 {[%clk 0:00:09]} 26. c6 {[%clk 0:00:32]}  Rc8 {[%clk 0:00:08]} 27. c7 {[%clk 0:00:32]}  Rfe8 {[%clk 0:00:06]} 28. Rd1 {[%clk 0:00:31]} 1-0


[Site "https://www.chess.com"]

[Event "Titled Tuesday Blitz February 14 Early 2023"]
[White "Broca Jimenez, Fernando"]
[Black "Gurevich, Dmitry"]
[WhiteFideId "5104742"]
[BlackFideId "2000407"]
[WhiteElo "2075"]
[BlackElo "2393"]
[Result "0-1"]
[Round "02"]
[TimeControl "180+2"]
[Date "2023.02.15"]
[WhiteClock "0:00:02"]
[BlackClock "0:00:14"]

1. e4 {[%clk 0:03:00]}  c5 {[%clk 0:02:59]} 2. c3 {[%clk 0:02:54]}  d5 {[%clk 0:02:56]} 3. exd5 {[%clk 0:02:55]}  Qxd5 {[%clk 0:02:56]} 4. d4 {[%clk 0:02:53]}  g6 {[%clk 0:02:56]} 5. Nf3 {[%clk 0:02:52]}  Bg7 {[%clk 0:02:55]} 6. Be2 {[%clk 0:02:50]}  Nf6 {[%clk 0:02:53]} 7. O-O {[%clk 0:02:49]}  O-O {[%clk 0:02:48]} 8. c4 {[%clk 0:02:44]}  Qd6 {[%clk 0:02:47]} 9. d5 {[%clk 0:02:43]}  b5 {[%clk 0:02:42]} 10. cxb5 {[%clk 0:02:03]}  Bb7 {[%clk 0:02:39]} 11. Nc3 {[%clk 0:02:01]}  Nxd5 {[%clk 0:02:38]} 12. Bd2 {[%clk 0:01:39]}  Nd7 {[%clk 0:02:29]} 13. Nxd5 {[%clk 0:01:22]}  Qxd5 {[%clk 0:02:21]} 14. Bc3 {[%clk 0:01:22]}  Bxc3 {[%clk 0:02:19]} 15. bxc3 {[%clk 0:01:18]}  Nb6 {[%clk 0:02:19]} 16. Qxd5 {[%clk 0:01:08]}  Nxd5 {[%clk 0:02:17]} 17. c4 {[%clk 0:00:57]}  Nc3 {[%clk 0:02:06]} 18. Rfe1 {[%clk 0:00:55]}  f6 {[%clk 0:02:00]} 19. Nd2 {[%clk 0:00:25]}  Rfd8 {[%clk 0:01:49]} 20. Nb3 {[%clk 0:00:24]}  Rac8 {[%clk 0:01:46]} 21. Bg4 {[%clk 0:00:15]}  Rc7 {[%clk 0:01:31]} 22. Be6+ {[%clk 0:00:12]}  Kf8 {[%clk 0:01:30]} 23. a4 {[%clk 0:00:13]}  Rd3 {[%clk 0:01:18]} 24. a5 {[%clk 0:00:11]}  Ne4 {[%clk 0:00:56]} 25. b6 {[%clk 0:00:09]}  axb6 {[%clk 0:00:46]} 26. axb6 {[%clk 0:00:10]}  Rc6 {[%clk 0:00:42]} 27. Na5 {[%clk 0:00:10]}  Rxe6 {[%clk 0:00:38]} 28. Nxb7 {[%clk 0:00:11]}  Rxb6 {[%clk 0:00:37]} 29. Rxe4 {[%clk 0:00:06]}  Rxb7 {[%clk 0:00:37]} 30. h4 {[%clk 0:00:06]}  e5 {[%clk 0:00:33]} 31. Rc1 {[%clk 0:00:05]}  Rd4 {[%clk 0:00:32]} 32. Re3 {[%clk 0:00:04]}  Rxh4 {[%clk 0:00:31]} 33. Rec3 {[%clk 0:00:05]}  Rd4 {[%clk 0:00:31]} 34. g3 {[%clk 0:00:06]}  h5 {[%clk 0:00:30]} 35. R1c2 {[%clk 0:00:06]}  Rb4 {[%clk 0:00:29]} 36. Kg2 {[%clk 0:00:07]}  Ke7 {[%clk 0:00:29]} 37. Kf3 {[%clk 0:00:07]}  f5 {[%clk 0:00:28]} 38. Ke3 {[%clk 0:00:07]}  Ke6 {[%clk 0:00:26]} 39. Rc1 {[%clk 0:00:06]}  g5 {[%clk 0:00:25]} 40. R1c2 {[%clk 0:00:07]}  g4 {[%clk 0:00:23]} 41. Ke2 {[%clk 0:00:06]}  f4 {[%clk 0:00:23]} 42. gxf4 {[%clk 0:00:06]}  exf4 {[%clk 0:00:24]} 43. Rc1 {[%clk 0:00:07]}  f3+ {[%clk 0:00:20]} 44. Kf1 {[%clk 0:00:07]}  Ke5 {[%clk 0:00:19]} 45. Kg1 {[%clk 0:00:03]}  Kf4 {[%clk 0:00:19]} 46. Kh2 {[%clk 0:00:03]}  h4 {[%clk 0:00:19]} 47. R1c2 {[%clk 0:00:01]}  Rb1 {[%clk 0:00:18]} 48. Rc1 {[%clk 0:00:02]}  Rxc1 {[%clk 0:00:16]} 49. Rxc1 {[%clk 0:00:01]}  Rd2 {[%clk 0:00:16]} 50. Kg1 {[%clk 0:00:01]}  g3 {[%clk 0:00:16]} 51. Re1 {[%clk 0:00:01]}  gxf2+ {[%clk 0:00:15]} 52. Kf1 {[%clk 0:00:02]}  fxe1=Q+ {[%clk 0:00:14]} 0-1


[Site "https://www.chess.com"]